bitfinex-derivatives/quotes_ETHF0:USTF0_20250531
["timestamp","ask_amount","ask_price","bid_price","bid_amount"]
[1748652854502,0.198,2524.9,2524.8,5.38082]
[1748652855406,0.79184,2524.8,2524.5,5.38089]
[1748652855607,1.3726,2524.8,2524.5,5.38089]
[1748652855812,1.3726,2524.8,2524.6,0.79188]
[1748652856004,1.3726,2524.8,2524.7,0.79185]
[1748652856203,1.3726,2524.8,2524.5,4.589]
[1748652856204,2.16442,2524.8,2524.5,4.589]
[1748652856404,1.3726,2524.8,2524.5,6.6364]
[1748652856904,1.3726,2524.8,2524.7,0.79185]
[1748652857112,0.198,2524.9,2524.8,0.79182]
[1748652859312,0.198,2524.9,2524.7,0.79184]
[1748652859908,1.3573,2524.8,2524.6,0.79186]
[1748652860614,1.3573,2524.8,2524.7,0.79185]
[1748652860809,0.8533,2524.9,2524.8,0.79182]
[1748652860810,0.198,2524.9,2524.8,0.79182]
[1748652862113,0.198,2524.9,2524.8,1.42772]
[1748652862813,0.198,2524.9,2524.8,3.39882]
[1748652863613,0.198,2524.9,2524.8,2.607]
[1748652863803,0.198,2524.9,2524.8,1.2604]
[1748652864008,0.198,2524.9,2524.8,2.05222]
[1748652864409,0.198,2524.9,2524.8,1.2604]
[1748652864711,0.98979,2524.9,2524.8,0.6359]
[1748652864912,0.79185,2524.7,2524.6,4.588]
[1748652865509,2.09845,2524.7,2524.6,4.588]
[1748652866718,7.09845,2524.7,2524.6,1.24801785]
[1748652867114,7.09845,2524.7,2524.1,43.1388]
[1748652867115,0.79201,2524.2,2524.1,44.519]
[1748652867414,0.79199,2524.3,2524.1,4.588]
[1748652867606,1.9432,2524.2,2524.1,4.588]
[1748652867915,2.73521,2524.2,2524.1,4.588]
[1748652869116,0.198,2524.2,2524.1,5.38004]
[1748652871212,0.198,2524.2,2524.1,4.588]
[1748652872216,1.44,2524.2,2524.1,4.588]
[1748652872417,0.198,2524.2,2524.1,5.38004]
[1748652873313,0.198,2524.2,2524.1,8.58784]
[1748652873618,0.198,2524.2,2524.1,13.58784]
[1748652873810,0.198,2524.2,2524.1,8.58784]
[1748652884727,0.99001,2524.2,2524.1,3.2078]
[1748652885025,0.79216,2523.7,2523.6,4.566]
[1748652885420,0.79215,2523.8,2523.6,4.566]
[1748652885613,3.2078,2524.2,2523.6,4.566]
[1748652885614,2.70106,2523.7,2523.6,4.566]
[1748652885818,3.38396,2523.7,2523.6,4.566]
[1748652886220,0.7922,2523.6,2523.5,7.7738]
[1748652886422,1.2646,2523.6,2523.1,3.2078]
[1748652886619,0.79231,2523.3,2523.1,3.2078]
[1748652886821,1.9089,2523.2,2523.1,3.2078]
[1748652887221,2.70122,2523.2,2523.1,3.2078]
[1748652887423,1.9089,2523.2,2523.1,3.2078]
[1748652888125,2.89932,2523.2,2523.1,3.2078]
[1748652888329,0.7924,2523.0,2522.8,3.2078]
[1748652888529,1.3575,2522.9,2522.8,3.2078]
[1748652888720,1.3575,2522.9,2522.7,4.566]
[1748652889619,2.14992,2522.9,2522.7,4.566]
[1748652889824,1.3575,2522.9,2522.7,4.566]
[1748652890327,1.3575,2522.9,2522.8,0.79245]
[1748652890515,1.3575,2522.9,2522.7,4.566]
[1748652890721,1.3575,2522.9,2522.7,5.35846]
[1748652891826,1.3575,2522.9,2522.7,4.566]
[1748652891827,2.14993,2522.9,2522.7,4.566]
[1748652892025,0.79245,2522.8,2522.7,4.566]
[1748652892227,6.3701,2522.8,2522.2,3.2078]
[1748652892526,0.79256,2522.5,2522.2,3.2078]
[1748652892727,1.3701,2522.4,2522.2,4.00042]
[1748652893121,1.3701,2522.4,2522.2,3.2078]
[1748652893537,1.3701,2522.4,2522.2,4.00041]
[1748652894025,3.866,2522.7,2522.3,4.567]
[1748652894342,1.2474,2522.9,2522.3,8.567]
[1748652894633,0.666,2523.0,2522.6,3.2078]
[1748652894828,0.1981,2523.2,2522.9,3.2078]
[1748652895130,0.1981,2523.2,2523.0,0.79237]
[1748652895326,0.1981,2523.2,2523.1,4.568]
[1748652895633,1.4455,2523.2,2523.1,5.36035]
[1748652896130,1.4455,2523.2,2523.1,4.568]
[1748652896633,2.23782,2523.2,2523.1,4.568]
[1748652896932,2.23782,2523.2,2522.8,0.6754]
[1748652896933,6.4455,2523.2,2522.8,4.568]
[1748652897234,0.79242,2522.9,2522.8,4.568]
[1748652897531,2.23784,2523.2,2522.8,5.36043]
[1748652897728,0.79236,2523.1,2522.8,5.36043]
[1748652897927,1.354,2523.0,2522.8,5.36043]
[1748652898128,1.354,2523.0,2522.8,4.568]
[1748652898129,1.9835,2523.0,2522.8,4.568]
[1748652899835,1.9835,2523.0,2522.8,5.36045]
[1748652900037,1.9835,2523.0,2522.8,4.568]
[1748652900231,2.77588,2523.0,2522.8,4.568]
[1748652900427,1.9835,2523.0,2522.8,5.36044]
[1748652900632,0.79242,2522.9,2522.8,4.568]
[1748652900836,1.304,2522.9,2522.8,5.36045]
[1748652901133,1.304,2522.9,2522.8,4.568]
[1748652901531,2.09642,2522.9,2522.8,4.568]
[1748652902039,1.304,2522.9,2522.8,4.568]
[1748652902429,0.79251,2522.6,2522.3,0.79258]
[1748652902625,1.304,2522.5,2522.1,3.2078]
[1748652902833,2.09654,2522.5,2522.4,4.568]
[1748652903332,1.9319,2522.5,2522.1,3.2078]
[1748652903541,0.79264,2522.2,2522.1,7.7758]
[1748652904129,0.79264,2522.2,2522.1,3.2078]
[1748652904536,0.99084,2522.2,2522.1,3.2078]
[1748652905242,0.79276,2521.8,2521.7,1.3375]
[1748652905438,0.79864754,2522.0,2521.9,4.569]
[1748652905833,2.09004754,2522.0,2521.9,4.569]
[1748652906336,0.00594754,2522.0,2521.9,4.569]
[1748652906639,0.00594754,2522.0,2521.9,5.36173]
[1748652906932,0.1982,2522.2,2522.1,0.79267]
[1748652907438,0.1982,2522.2,2522.1,5.79267]
[1748652907736,0.1982,2522.2,2522.1,1.42947]
[1748652908544,0.1982,2522.2,2522.1,6.42947]
[1748652908739,0.1982,2522.2,2522.1,10.99847]
[1748652909438,0.1982,2522.2,2522.1,5.99847]
[1748652910245,0.1982,2522.2,2522.1,10.99847]
[1748652912333,0.1982,2522.2,2522.1,10.97747]
[1748652912737,0.1982,2522.2,2522.1,5.97747]
[1748652913243,0.1982,2522.2,2522.1,10.97747]
[1748652913641,0.1982,2522.2,2522.1,1.42947]
[1748652913838,0.1982,2522.2,2522.1,5.1848]
[1748652914338,0.99083,2522.2,2522.1,5.1848]
[1748652914539,0.99083,2522.2,2522.1,4.548]
[1748652915345,0.99084,2522.2,2522.1,4.548]
[1748652915534,0.1982,2522.2,2522.0,2.1213]
[1748652915740,0.79265,2522.2,2522.1,4.548]
[1748652916359,2.02604754,2522.4,2522.1,4.548]
[1748652916360,2.02604754,2522.4,2522.1,5.34066]
[1748652916546,0.79262,2522.3,2522.1,5.34066]
[1748652916742,0.00594754,2522.4,2522.1,4.548]
[1748652917045,0.00594754,2522.4,2522.3,0.7926]
[1748652917241,0.79851754,2522.4,2522.3,1.3286]
[1748652917446,0.00594754,2522.4,2522.3,2.1212]
[1748652918139,0.79851754,2522.4,2522.3,1.3286]
[1748652918354,0.99671754,2522.4,2522.3,1.3286]
[1748652918642,0.7926,2522.3,2522.2,3.8812]
[1748652918847,0.7927,2522.0,2521.9,4.55394754]
[1748652920149,2.0856,2522.0,2521.9,4.55394754]
[1748652921246,1.43728,2522.1,2521.9,4.55394754]
[1748652921750,0.7927,2522.0,2521.9,4.55394754]
[1748652922652,2.0505,2522.0,2521.9,4.55394754]
[1748652924052,6.2578,2522.0,2521.3,3.2078]
[1748652924352,0.79298,2521.2,2521.0,3.2078]
[1748652924541,3.2078,2521.6,2521.0,3.2078]
[1748652924738,0.79289,2521.4,2521.1,2.15566]
[1748652924948,3.8524,2522.1,2521.2,1.3627]
[1748652925150,0.79289,2521.4,2521.3,0.6764]
[1748652925451,0.79289,2521.4,2521.3,5.2254]
[1748652926744,0.79298,2521.1,2521.0,3.2078]
[1748652926944,0.79298,2521.1,2521.0,7.7568]
[1748652927246,0.79298,2521.1,2521.0,3.2078]
[1748652927449,0.79293,2521.3,2521.0,4.0008]
[1748652927652,0.79293,2521.3,2521.1,1.8702]
[1748652928351,0.79292,2521.3,2521.1,1.8702]
[1748652928647,1.98179,2522.0,2521.1,1.8702]
[1748652928648,3.2078,2522.1,2521.2,1.2437]
[1748652928853,0.79285,2521.5,2521.4,3.2078]
[1748652929041,0.79285,2521.5,2521.4,4.4515]
[1748652929244,0.79285,2521.5,2521.4,1.2437]
[1748652929956,0.79289,2521.4,2521.3,4.549]
[1748652930253,0.79293,2521.3,2521.1,5.1565]
[1748652930555,0.79289,2521.4,2521.2,4.549]
[1748652930756,0.79289,2521.4,2521.2,5.8712]
[1748652930956,0.79292,2521.3,2521.2,4.549]
[1748652931146,0.79289,2521.4,2521.2,4.549]
[1748652931347,0.1983,2521.3,2521.2,4.549]
[1748652931645,0.99122,2521.3,2521.2,4.549]
[1748652932046,0.1983,2521.3,2521.2,4.549]
[1748652932452,0.99122,2521.3,2521.2,4.549]
[1748652933050,0.1983,2521.3,2521.2,4.549]
[1748652933250,0.1983,2521.3,2521.2,5.34195]
[1748652933953,0.1983,2521.3,2521.2,4.549]
[1748652935452,0.1983,2521.3,2521.2,5.34195]
[1748652936249,0.6822,2521.9,2521.3,1.98229]
[1748652936556,1.9819,2522.0,2521.8,0.79274]
[1748652936759,2.7746,2522.0,2521.9,4.55]
[1748652939553,0.1982,2522.1,2521.9,4.55]
[1748652939755,0.1982,2522.1,2521.9,7.7578]
[1748652940059,0.1982,2522.1,2522.0,2.1181]
[1748652940259,0.1982,2522.1,2522.0,1.3254]
[1748652940659,0.1982,2522.1,2521.9,7.7578]
[1748652941152,0.1982,2522.1,2522.0,0.7927]
[1748652941356,0.1982,2522.1,2522.0,2.1181]
[1748652945660,0.00594754,2522.4,2522.3,0.7926]
[1748652945856,0.00594754,2522.4,2522.3,8.5294]
[1748652946665,0.00594754,2522.4,2522.3,7.7368]
[1748652946964,0.00594754,2522.4,2522.3,8.5294]
[1748652947869,0.79851754,2522.4,2522.3,7.7368]
[1748652948162,0.00594754,2522.4,2522.3,10.5142]
[1748652948559,0.79851754,2522.4,2522.3,9.7216]
[1748652948763,0.79851754,2522.4,2522.3,8.3623]
[1748652949165,0.00594754,2522.4,2522.3,9.1549]
[1748652951167,0.79851754,2522.4,2522.3,8.3623]
[1748652951661,0.00594754,2522.4,2522.3,9.1549]
[1748652951963,0.79851754,2522.4,2522.3,8.3623]
[1748652952263,0.00594754,2522.4,2522.3,8.3623]
[1748652952468,0.79851754,2522.4,2522.3,8.3623]
[1748652952967,0.00594754,2522.4,2522.3,9.1549]
[1748652955064,1.3016,2523.0,2522.4,1.9814]
[1748652955065,2.09398,2523.0,2522.4,1.9814]
[1748652955371,2.09398,2523.0,2522.8,0.79243]
[1748652955567,2.09398,2523.0,2522.9,4.529]
[1748652958674,2.09398,2523.0,2522.7,0.00594754]
[1748652958675,0.79245,2522.8,2522.7,0.00594754]
[1748652959075,0.79245,2522.8,2522.7,4.53494754]
[1748652960774,4.00025,2522.8,2522.7,0.00594754]
[1748652960979,0.79245,2522.8,2522.7,4.53494754]
[1748652963381,5.79245,2522.8,2522.7,0.00594754]
[1748652963587,5.79245,2522.8,2521.4,45.44801983]
[1748652963588,1.98128,2522.6,2522.3,4.529]
[1748652963783,0.79257,2522.4,2522.3,4.529]
[1748652964086,0.79263,2522.2,2522.1,4.529]
[1748652964285,0.79284,2521.6,2521.4,39.974]
[1748652964487,0.79284,2521.6,2521.5,4.529]
[1748652964789,0.79286,2521.5,2521.4,39.974]
[1748652964987,2.12076,2521.5,2521.4,44.503]
[1748652965581,1.3279,2521.5,2521.1,0.6512]
[1748652965774,0.79298,2521.1,2521.0,3.2078]
[1748652965979,0.79298,2521.1,2521.0,7.7368]
[1748652966586,0.79298,2521.1,2521.0,4.529]
[1748652967080,2.71628,2521.1,2521.0,4.529]
[1748652967481,0.79311,2520.7,2520.6,7.7368]
[1748652969884,1.2864,2520.9,2520.6,7.7368]
[1748652970086,0.79311,2520.7,2520.6,7.7368]
[1748652970282,1.2864,2520.9,2520.6,7.7368]
[1748652970482,0.79311,2520.7,2520.6,7.7368]
[1748652971388,0.79311,2520.7,2520.6,3.2078]
[1748652971585,0.79311,2520.7,2520.6,7.7378]
[1748652972580,1.2864,2520.9,2520.6,7.7378]
[1748652972887,0.79311,2520.7,2520.6,7.7378]
[1748652973086,0.79309,2520.8,2520.6,7.7378]
[1748652973290,1.2417,2520.7,2520.6,7.7378]
[1748652973875,0.6841,2521.0,2520.6,7.7378]
[1748652974083,0.79309,2520.8,2520.6,7.7378]
[1748652974282,0.79306,2520.9,2520.6,7.7378]
[1748652974484,2.03477,2520.9,2520.6,7.7378]
[1748652974683,0.79309,2520.8,2520.6,7.7378]
[1748652974886,1.2417,2520.8,2520.6,7.7378]
[1748652975186,0.79311,2520.7,2520.6,7.7378]
[1748652976482,0.79311,2520.7,2520.6,3.2078]
[1748652976483,5.79311,2520.7,2520.6,3.2078]
[1748652976688,0.79323,2520.3,2520.2,4.511]
[1748652977586,0.00594754,2520.5,2520.2,4.511]
[1748652977791,0.00594754,2520.5,2520.3,2.77502]
[1748652977992,0.79911754,2520.5,2520.3,1.9818]
[1748652978293,0.00594754,2520.5,2520.3,1.9818]
[1748652978492,0.00594754,2520.5,2520.3,2.77502]
[1748652978685,0.00594754,2520.5,2520.3,1.9818]
[1748652978885,0.79911754,2520.5,2520.3,1.9818]
[1748652979591,0.00594754,2520.5,2520.3,2.77502]
[1748652979789,0.00594754,2520.5,2520.3,1.9818]
[1748652979983,0.79913754,2520.5,2520.3,1.9818]
[1748652980689,0.7932,2520.4,2520.3,0.6363]
[1748652980992,0.7932,2520.4,2520.3,5.1473]
[1748652981398,0.79911754,2520.5,2520.3,5.1473]
[1748652981593,0.79913754,2520.5,2520.3,5.1473]
[1748652981891,0.79912754,2520.5,2520.3,5.1473]
[1748652982282,0.00594754,2520.5,2520.3,6.422]
[1748652982487,0.7932,2520.4,2520.3,6.422]
[1748652982889,0.00594754,2520.5,2520.3,6.422]
[1748652983188,0.00594754,2520.5,2520.4,0.7932]
[1748652983389,0.00594754,2520.5,2520.4,1.2747]
[1748652985091,0.7932,2520.4,2520.3,5.1473]
[1748652985388,0.7932,2520.4,2520.3,4.512]
[1748652985686,0.79326,2520.2,2520.1,4.512]
[1748652986294,0.79326,2520.2,2520.1,5.1886]
[1748652986594,0.79326,2520.2,2520.1,4.512]
[1748652989586,2.05715,2520.3,2520.1,4.512]
[1748652989786,0.6234,2520.4,2520.1,4.512]
[1748652989991,0.00594754,2520.5,2520.4,0.7932]
[1748652990190,0.00594754,2520.5,2520.4,1.4685]
[1748652990387,0.00594754,2520.5,2520.4,2.7413]
[1748652991194,0.00594754,2520.5,2520.4,1.9481]
[1748652991493,0.00594754,2520.5,2520.4,2.7413]
[1748652991699,0.00594754,2520.5,2520.4,1.9481]
[1748652991994,0.00594754,2520.5,2520.4,2.7413]
[1748652992593,0.00594754,2520.5,2520.4,1.9481]
[1748652992989,0.79911754,2520.5,2520.4,5.1873]
[1748652993497,0.00594754,2520.5,2520.4,5.1873]
[1748652995002,0.79911754,2520.5,2520.4,6.4701]
[1748652995201,0.00594754,2520.5,2520.4,6.4701]
[1748652996103,0.79911754,2520.5,2520.4,6.4701]
[1748652997205,0.78978964,2520.5,2520.4,5.1873]
[1748652998307,1.98944754,2520.7,2520.4,5.1873]
[1748652998604,1.36784754,2520.7,2520.4,5.1873]
[1748652998808,0.79314,2520.6,2520.5,1.3055]
[1748652999805,0.79906754,2520.7,2520.5,1.3055]
[1748653000304,0.79314,2520.6,2520.5,1.3055]
[1748653000500,0.79317,2520.5,2520.4,5.1873]
[1748653001205,0.79317,2520.5,2520.4,6.5531]
[1748653002508,0.7932,2520.4,2520.3,3.2078]
[1748653002701,1.98285,2520.6,2520.3,4.512]
[1748653002907,0.7932,2520.4,2520.3,4.512]
[1748653003602,1.4631,2520.4,2520.3,4.512]
[1748653004003,2.7171,2520.4,2520.3,4.512]
[1748653005707,0.6678,2520.5,2520.3,4.512]
[1748653005907,0.7932,2520.4,2520.3,5.1985]
[1748653006106,2.1478,2520.4,2520.3,5.1985]
[1748653006508,2.1478,2520.4,2520.3,4.512]
[1748653006808,2.808,2520.4,2520.3,4.512]
[1748653009210,0.79323,2520.3,2520.2,0.00594754]
[1748653009508,2.15893,2520.3,2520.2,4.49694754]
[1748653011110,2.15893,2520.3,2520.2,0.00594754]
[1748653012503,8.37424764,2520.3,2520.2,7.54e-06]
[1748653012802,27.55424764,2520.3,2520.2,7.54e-06]
[1748653013799,1.98318,2520.2,2519.1,7.6998]
[1748653013999,0.79353,2519.4,2519.2,5.1303]
[1748653014203,3.2078,2519.9,2519.2,6.4422]
[1748653014204,0.79355,2519.3,2519.2,6.4422]
[1748653014406,0.79355,2519.3,2519.2,5.1303]
[1748653015207,0.79355,2519.3,2519.2,5.20185339]
[1748653016112,0.79355,2519.3,2519.2,5.1303]
[1748653016515,3.2078,2520.0,2519.2,8.3381]
[1748653016715,1.9998,2520.1,2519.5,3.2078]
[1748653016914,5.53856913,2520.4,2519.8,3.2078]
[1748653017117,0.79336,2519.9,2519.8,3.2078]
[1748653017318,0.79336,2519.9,2519.8,7.6998]
[1748653017812,0.79336,2519.9,2519.8,4.492]
[1748653019514,1.98342,2519.9,2519.2,3.2078]
[1748653019715,0.79352,2519.4,2519.3,4.492]
[1748653019917,0.79351,2519.5,2519.3,4.492]
[1748653020218,0.79351,2519.4,2519.3,4.492]
[1748653020814,0.79355,2519.3,2519.2,3.2078]
[1748653021012,0.79355,2519.3,2518.8,0.6819]
[1748653021013,3.2078,2519.3,2519.0,4.492]
[1748653021318,0.79361,2519.1,2519.0,4.492]
[1748653021519,0.79367,2518.9,2518.8,0.6819]
[1748653021709,0.79367,2518.9,2518.8,4.492]
[1748653021912,0.79374,2518.7,2518.6,3.2078]
[1748653022319,0.79374,2518.7,2518.2,0.6627]
[1748653022320,3.2078,2518.7,2518.3,3.2078]
[1748653022621,0.79389,2518.2,2518.1,5.47401983]
[1748653022825,0.79391,2518.2,2518.0,3.2078]
[1748653023119,1.9197,2518.6,2518.0,3.2078]
[1748653023425,0.79392,2518.1,2518.0,3.8448]
[1748653024127,0.79391,2518.2,2518.0,3.8448]
[1748653024321,0.79392,2518.1,2518.0,3.8448]
[1748653024623,3.2078,2518.1,2517.3,3.2078]
[1748653024816,0.79407,2517.7,2517.1,5.13]
[1748653025018,2.06941754,2518.0,2517.5,0.79411]
[1748653025313,0.79401,2517.9,2517.3,3.2078]
[1748653025522,0.00594754,2518.0,2517.6,3.2078]
[1748653025729,0.79402,2517.8,2517.7,4.493]
[1748653026423,1.27544754,2518.0,2517.2,3.2078]
[1748653026620,1.27544754,2518.0,2517.3,4.494]
[1748653027123,2.06941754,2518.0,2517.5,0.7941]
[1748653027322,0.1985,2517.9,2517.5,3.2078]
[1748653027529,0.1985,2517.9,2517.5,4.00189]
[1748653028022,0.1985,2517.9,2517.8,4.00182]
[1748653028327,0.1985,2517.9,2517.8,7.7018]
[1748653028517,0.1985,2517.9,2517.8,4.494]
[1748653029117,0.99249,2517.9,2517.8,4.494]
[1748653029314,0.1985,2517.9,2517.8,4.494]
[1748653029821,0.1985,2517.9,2517.8,7.7018]
[1748653030021,0.1985,2517.9,2517.8,8.49582]
[1748653030332,0.1985,2517.9,2517.8,13.49582]
[1748653030821,0.00594754,2518.0,2517.8,13.49582]
[1748653031025,0.79371,2518.8,2518.5,0.79378]
[1748653031225,3.2078,2518.9,2518.7,0.79373]
[1748653031427,3.2078,2518.9,2518.3,3.2078]
[1748653031428,3.2078,2518.9,2518.8,4.495]
[1748653031821,3.2078,2519.4,2518.8,4.495]
[1748653032125,0.79956754,2519.1,2518.8,5.29463754]
[1748653032329,0.00594754,2519.1,2519.0,0.07155339]
[1748653032530,0.00594754,2519.1,2519.0,1.50519339]
[1748653032924,0.00594754,2519.1,2519.0,6.50519339]
[1748653033426,0.07938398,2519.4,2519.3,0.79355]
[1748653033626,0.79339,2519.8,2519.3,7.7018]
[1748653033824,0.79337,2519.9,2519.5,0.79347]
[1748653034028,0.7934,2519.8,2519.4,2.048]
[1748653034231,0.79332,2520.1,2519.7,0.7934]
[1748653034526,0.79336,2519.9,2519.8,1.2545]
[1748653034721,0.79336,2519.9,2519.8,5.7485]
[1748653035128,4.58616193,2520.1,2519.3,3.2078]
[1748653035326,3.2078,2519.8,2519.4,5.7305]
[1748653035527,0.79348,2519.5,2519.4,5.7305]
[1748653035726,1.299,2519.7,2519.0,40.73255339]
[1748653035929,0.79358,2519.2,2519.1,5.7295]
[1748653036226,3.2078,2519.5,2519.1,5.7295]
[1748653036424,0.79356,2519.3,2519.2,1.3642]
[1748653036625,0.79358,2519.2,2519.1,4.475]
[1748653036931,0.79361,2519.1,2519.0,40.73255339]
[1748653037230,0.79361,2519.1,2519.0,44.56755339]
[1748653037829,0.79361,2519.1,2519.0,4.54655339]
[1748653038030,4.00141,2519.1,2519.0,0.07155339]
[1748653039234,9.00141,2519.1,2519.0,0.07155339]
[1748653040433,0.79367,2518.9,2518.8,0.00594754]
[1748653040934,1.9405,2519.0,2518.8,0.00594754]
[1748653041126,4.5211,2519.4,2518.8,1.37824754]
[1748653041328,0.79367,2518.9,2518.8,1.37824754]
[1748653041527,0.79367,2518.9,2518.8,0.00594754]
[1748653042027,4.5211,2519.4,2518.8,0.00594754]
[1748653042333,0.79367,2518.9,2518.8,1.37824754]
[1748653042828,0.79367,2518.9,2518.8,4.48194754]
[1748653043319,3.2078,2519.4,2518.8,4.48194754]
[1748653043525,3.2078,2519.4,2519.2,0.07155339]
[1748653043736,4.00131,2519.4,2519.3,5.7203]
[1748653044235,4.00131,2519.4,2519.3,4.476]
[1748653044730,0.79354,2519.3,2519.2,0.07155339]
[1748653044934,2.10584,2519.3,2519.2,0.07155339]
[1748653045729,7.74414,2519.3,2519.2,0.07155339]
[1748653046424,2.74414,2519.3,2519.2,0.07155339]
[1748653047530,2.74414,2519.3,2519.2,3.39e-06]
[1748653047733,7.74414,2519.3,2519.2,3.39e-06]
[1748653049433,8.97464864,2519.3,2519.2,3.39e-06]
[1748653050733,0.79383,2518.4,2518.3,4.476]
[1748653050938,4.00163,2518.4,2518.3,4.476]
[1748653051741,0.79395,2518.0,2517.9,4.476]
[1748653051942,0.79405,2517.7,2517.6,0.6658]
[1748653052127,0.79405,2517.7,2517.6,4.476]
[1748653052332,4.00185,2517.7,2517.6,4.476]
[1748653052837,0.79405,2517.7,2517.6,4.476]
[1748653053236,0.79401,2517.9,2517.6,4.476]
[1748653053431,3.2078,2518.0,2517.7,1.2718]
[1748653053637,0.79402,2517.8,2517.7,1.2718]
[1748653053930,3.2078,2518.0,2517.7,2.06584]
[1748653054130,3.2078,2518.5,2517.7,9.4796]
[1748653054440,0.79399,2517.9,2517.8,5.7488]
[1748653055034,0.79399,2517.9,2517.8,1.2718]
[1748653055338,0.79399,2517.9,2517.8,5.7488]
[1748653056132,0.79399,2517.9,2517.8,1.2718]
[1748653056335,0.79399,2517.9,2517.8,5.7488]
[1748653056539,0.79399,2517.9,2517.8,1.2718]
[1748653056733,0.79399,2517.9,2517.8,5.7488]
[1748653056940,0.79398,2518.0,2517.8,1.2718]
[1748653057236,0.79398,2518.0,2517.9,5.7912]
[1748653057943,0.79394,2518.1,2517.9,5.7912]
[1748653058129,0.79394,2518.1,2518.0,1.3205]
[1748653059142,3.2078,2518.5,2518.0,6.3205]
[1748653059338,3.2078,2518.5,2518.2,0.79388]
[1748653059644,4.00162,2518.5,2518.3,1.39205339]
[1748653059940,4.00162,2518.5,2518.4,4.477]
[1748653061037,3.2078,2518.5,2518.4,4.477]
[1748653061243,0.00594754,2518.6,2518.4,8.3707]
[1748653061444,0.00594754,2518.6,2518.5,1.2815]
[1748653061644,0.79971754,2518.6,2518.5,1.2815]
[1748653061839,0.00594754,2518.6,2518.5,1.2815]
[1748653062136,0.79971754,2518.6,2518.5,1.2815]
[1748653063042,0.00594754,2518.6,2518.5,1.2815]
[1748653063243,1.3101,2519.0,2518.5,1.2815]
[1748653063244,0.79364,2519.0,2518.7,0.7937]
[1748653063435,3.2078,2519.4,2518.8,5.7585]
[1748653063640,3.2078,2519.4,2518.9,0.79364]
[1748653063944,0.79361,2519.1,2519.0,1.3554]
[1748653064149,3.2078,2519.4,2519.0,1.3554]
[1748653064636,0.79359,2519.2,2519.0,1.3554]
[1748653064845,0.79361,2519.1,2519.0,1.3554]
[1748653065036,3.2078,2519.4,2519.0,1.3554]
[1748653065537,0.79356,2519.3,2519.0,1.3554]
[1748653065737,0.79359,2519.2,2519.0,1.3554]
[1748653066144,3.2078,2519.4,2519.0,1.3554]
[1748653066342,0.79359,2519.2,2519.0,1.3554]
[1748653066542,0.79355,2519.3,2519.0,2.14902]
[1748653066839,3.2078,2519.4,2519.0,1.3554]
[1748653067045,0.79361,2519.1,2519.0,1.3554]
[1748653068143,0.79361,2519.1,2519.0,5.8224]
[1748653068751,0.79361,2519.1,2519.0,1.3554]
[1748653069041,0.79361,2519.1,2519.0,4.467]
[1748653069438,0.79364,2519.0,2518.9,0.67544754]
[1748653069645,0.79364,2519.0,2518.9,5.14244754]
[1748653071441,0.79364,2519.0,2518.9,4.47294754]
[1748653072844,0.79364,2519.0,2518.9,4.47194754]
[1748653073643,0.79363,2519.1,2518.9,4.47194754]
[1748653073847,0.79364,2519.0,2518.9,4.47194754]
[1748653075342,2.0633,2519.2,2518.9,4.47194754]
[1748653075543,1.2697,2519.2,2518.9,4.47194754]
[1748653075949,2.06328,2519.2,2519.0,0.07155339]
[1748653076246,0.79361,2519.1,2519.0,0.07155339]
[1748653076447,1.2697,2519.2,2519.0,0.07155339]
[1748653076850,1.2697,2519.2,2519.0,1.36815339]
[1748653077047,0.00594754,2519.5,2519.0,5.24575339]
[1748653077248,1.35774754,2519.5,2519.0,5.24575339]
[1748653077449,1.35774754,2519.5,2519.1,0.7936]
[1748653077639,2.15123754,2519.5,2519.0,6.03939339]
[1748653077844,1.35774754,2519.5,2519.0,6.03939339]
[1748653078150,2.15122754,2519.5,2519.0,6.03939339]
[1748653078352,1.35774754,2519.5,2519.0,6.03939339]
[1748653078648,2.15123754,2519.5,2519.0,5.24575339]
[1748653078851,1.35774754,2519.5,2519.0,5.24575339]
[1748653079046,0.79359,2519.2,2519.0,2.03795339]
[1748653079353,0.79355,2519.3,2519.0,2.03795339]
[1748653079956,0.79361,2519.1,2519.0,2.03795339]
[1748653080148,0.79361,2519.1,2519.0,4.53755339]
[1748653080747,2.70501,2519.1,2519.0,0.07155339]
[1748653080947,7.70501,2519.1,2519.0,3.73e-06]
[1748653082748,8.94048382,2519.1,2519.0,3.73e-06]
[1748653084950,3.94048382,2519.1,2519.0,3.73e-06]
[1748653085155,3.14687382,2519.1,2519.0,3.73e-06]
[1748653085754,2.02908382,2519.1,2519.0,3.73e-06]
[1748653085955,1.23547382,2519.1,2519.0,3.73e-06]
[1748653086349,3.2078,2519.2,2519.0,1.32200373]
[1748653086551,0.00594754,2519.5,2519.0,4.52980373]
[1748653086950,0.79944754,2519.5,2519.0,4.52980373]
[1748653087357,0.79352,2519.4,2519.0,4.52980373]
[1748653087652,0.00594754,2519.5,2519.4,0.79351]
[1748653087845,0.00594754,2519.5,2519.4,5.25951]
[1748653088050,0.00594754,2519.5,2519.4,12.29851]
[1748653088246,5.53856913,2520.4,2519.4,11.505]
[1748653088553,3.2078,2520.4,2519.8,3.2078]
[1748653088758,0.79333,2520.0,2519.9,4.466]
[1748653089144,0.79331,2520.1,2519.9,4.466]
[1748653089353,0.64114754,2520.2,2519.9,4.466]
[1748653089553,0.79333,2520.0,2519.9,4.466]
[1748653090054,0.79339,2519.8,2519.6,1.3584]
[1748653090258,0.79339,2519.8,2519.7,4.466]